bitfinex/quotes_BTCUSD_20250219
["timestamp","ask_amount","ask_price","bid_price","bid_amount"]
[1739989291218,0.001,96226.0,96215.0,0.10250365]
[1739989291550,0.003,96226.0,96216.0,0.155898]
[1739989291705,0.003,96226.0,96217.0,0.155896]
[1739989291910,0.155881,96227.0,96217.0,0.155896]
[1739989292106,0.18325908,96227.0,96217.0,0.155896]
[1739989292312,0.18325908,96227.0,96215.0,0.31337065]
[1739989292524,0.02737808,96227.0,96216.0,0.10250365]
[1739989292731,0.0004254,96229.0,96220.0,0.207855]
[1739989292958,0.0004254,96229.0,96228.0,0.155879]
[1739989293180,0.0004254,96229.0,96228.0,0.278679]
[1739989293821,0.0004254,96229.0,96228.0,0.1228]
[1739989294286,0.02694301,96229.0,96228.0,0.1228]
[1739989294491,0.155892,96220.0,96219.0,0.0473]
[1739989294711,0.155899,96216.0,96215.0,0.002]
[1739989294914,0.1559,96215.0,96214.0,0.31252367]
[1739989296620,0.1579,96215.0,96214.0,0.31252367]
[1739989298648,0.3079,96215.0,96214.0,4.367e-05]
[1739989305755,0.3059,96215.0,96214.0,4.367e-05]
[1739989306147,0.3079,96215.0,96214.0,4.367e-05]
[1739989307092,0.3079,96215.0,96214.0,0.00089447]
[1739989307771,0.32418995,96215.0,96214.0,0.00089447]
[1739989314074,0.3079,96215.0,96214.0,0.00089447]
[1739989318576,0.3241903,96215.0,96214.0,0.00089447]
[1739989319210,0.0182903,96215.0,96214.0,0.00089447]
[1739989319360,0.1741903,96215.0,96214.0,0.00089447]
[1739989323817,0.1579,96215.0,96214.0,0.00089447]
[1739989325783,0.3079,96215.0,96214.0,0.00089447]
[1739989325985,0.3079,96215.0,96214.0,0.12629447]
[1739989325986,0.002,96215.0,96214.0,0.12629447]
[1739989326844,0.1579,96215.0,96214.0,0.12629447]
[1739989327247,0.207864,96217.0,96214.0,0.12929447]
[1739989327459,0.1559,96215.0,96214.0,0.13029447]
[1739989328076,0.1559,96215.0,96214.0,0.12629447]
[1739989328483,0.1559,96215.0,96214.0,0.12929447]
[1739989328896,0.1559,96215.0,96214.0,0.12829447]
[1739989329392,0.1559,96215.0,96214.0,0.12929447]
[1739989329636,0.1559,96215.0,96214.0,0.12729447]
[1739989329865,0.1559,96215.0,96214.0,0.13029447]
[1739989330348,0.1559,96215.0,96214.0,0.12729447]
[1739989330579,0.1559,96215.0,96214.0,0.12829447]
[1739989330786,0.1559,96215.0,96214.0,0.12729447]
[1739989331010,0.1563255,96215.0,96214.0,0.12929447]
[1739989331181,0.1474055,96215.0,96214.0,0.12929447]
[1739989331396,0.1474055,96215.0,96214.0,0.12629447]
[1739989331599,0.1474055,96215.0,96214.0,0.00189447]
[1739989331803,0.2974055,96215.0,96214.0,0.00189447]
[1739989332829,0.2994055,96215.0,96214.0,0.00089447]
[1739989333450,0.2994055,96215.0,96214.0,0.00289447]
[1739989333651,0.2994055,96215.0,96214.0,0.00089447]
[1739989334302,0.1494055,96215.0,96214.0,0.00089447]
[1739989335118,0.1474055,96215.0,96214.0,0.00089447]
[1739989335559,0.1494055,96215.0,96214.0,0.00089447]
[1739989337142,0.16569538,96215.0,96214.0,0.00089447]
[1739989337412,0.93715738,96215.0,96214.0,0.00089447]
[1739989337629,1.03315044,96215.0,96199.0,0.0008508]
[1739989337865,0.155925,96200.0,96199.0,0.0008508]
[1739989339599,0.160925,96200.0,96199.0,0.0008508]
[1739989339810,0.161925,96200.0,96199.0,0.0008508]
[1739989340028,0.155925,96200.0,96199.0,0.0008508]
[1739989340241,0.17670742,96200.0,96199.0,0.0008508]
[1739989340858,0.17770742,96200.0,96199.0,0.0008508]
[1739989341260,0.17670742,96200.0,96199.0,0.0008508]
[1739989341475,0.17770742,96200.0,96199.0,0.0008508]
[1739989341846,0.18170742,96200.0,96199.0,0.0008508]
[1739989342229,0.17770742,96200.0,96199.0,0.0008508]
[1739989342637,0.18070742,96200.0,96199.0,0.0008508]
[1739989342840,0.52789242,96200.0,96199.0,0.0008508]
[1739989343070,1.06762542,96200.0,96199.0,0.0008508]
[1739989343386,1.20527942,96200.0,96199.0,0.0008508]
[1739989343563,1.12365642,96200.0,96199.0,0.0008508]
[1739989343745,0.58990442,96200.0,96199.0,0.0008508]
[1739989344181,0.59090442,96200.0,96199.0,0.0008508]
[1739989344387,0.59390442,96200.0,96199.0,0.0008508]
[1739989345730,0.18070742,96200.0,96199.0,0.0008508]
[1739989345933,0.18070742,96200.0,96199.0,0.0841508]
[1739989346361,0.18070742,96200.0,96199.0,0.0008508]
[1739989346571,0.92572942,96200.0,96199.0,0.0008508]
[1739989346775,1.35135882,96200.0,96199.0,0.0008508]
[1739989346941,1.35659182,96200.0,96199.0,0.0008508]
[1739989347399,1.35559182,96200.0,96199.0,0.0008508]
[1739989347603,1.35359182,96200.0,96199.0,0.0008508]
[1739989347771,1.35459182,96200.0,96199.0,0.0008508]
[1739989349049,1.35359182,96200.0,96199.0,0.0008508]
[1739989350619,1.35459182,96200.0,96199.0,0.0008508]
[1739989351042,1.02428182,96200.0,96199.0,0.0008508]
[1739989351246,0.95850482,96200.0,96199.0,0.0008508]
[1739989351456,0.83365782,96200.0,96199.0,0.0008508]
[1739989352292,0.83265782,96200.0,96199.0,0.0008508]
[1739989352489,0.83365782,96200.0,96199.0,0.0008508]
[1739989352895,0.86857318,96200.0,96199.0,0.0008508]
[1739989353116,1.12107683,96200.0,96199.0,0.0008508]
[1739989353319,1.13661768,96200.0,96199.0,8e-07]
[1739989353530,0.49995968,96200.0,96199.0,8e-07]
[1739989353715,0.38116363,96200.0,96199.0,8e-07]
[1739989353940,0.38016363,96200.0,96199.0,8e-07]
[1739989354358,0.38116363,96200.0,96199.0,8e-07]
[1739989354694,0.37816363,96200.0,96199.0,8e-07]
[1739989354899,0.38516363,96200.0,96199.0,8e-07]
[1739989355548,0.38416363,96200.0,96199.0,8e-07]
[1739989355948,0.38916363,96200.0,96199.0,8e-07]
[1739989358478,0.73035763,96200.0,96199.0,8e-07]
[1739989363822,0.71406363,96200.0,96199.0,8e-07]
[1739989365396,0.71406363,96200.0,96186.0,0.08]
[1739989365397,0.155946,96187.0,96186.0,0.08]
[1739989365606,0.326511,96187.0,96186.0,0.08043651]
[1739989365811,0.401132,96187.0,96186.0,0.08043651]
[1739989366023,0.186107,96187.0,96186.0,0.08043651]
[1739989366603,0.342053,96187.0,96186.0,0.08043651]
[1739989367362,0.345053,96187.0,96186.0,0.08043651]
[1739989368138,0.3613471,96187.0,96186.0,0.08043651]
[1739989369304,0.45607561,96187.0,96175.0,0.0463]
[1739989369507,0.155968,96173.0,96172.0,0.082]
[1739989369648,0.318682,96173.0,96172.0,0.08204368]
[1739989369856,0.316181,96173.0,96172.0,0.08204368]
[1739989370346,0.33247684,96173.0,96172.0,0.08204368]
[1739989371393,0.33547684,96173.0,96172.0,4.368e-05]
[1739989372238,0.33547684,96173.0,96172.0,0.00404368]
[1739989372491,0.36532348,96173.0,96172.0,4.368e-05]
[1739989372708,0.20511048,96173.0,96172.0,4.368e-05]
[1739989372906,0.37747848,96173.0,96172.0,4.368e-05]
[1739989373709,0.35818264,96173.0,96172.0,4.368e-05]
[1739989373911,0.36218264,96173.0,96172.0,4.368e-05]
[1739989374080,0.35918264,96173.0,96172.0,4.368e-05]
[1739989374286,0.47390781,96173.0,96172.0,4.368e-05]
[1739989374646,0.34719381,96173.0,96172.0,4.368e-05]
[1739989374854,0.35019381,96173.0,96172.0,4.368e-05]
[1739989375250,0.20937981,96173.0,96172.0,0.08294368]
[1739989375493,0.18981464,96173.0,96172.0,0.08294368]
[1739989375871,0.18881464,96173.0,96172.0,0.08294368]
[1739989376072,0.18981464,96173.0,96172.0,0.08294368]
[1739989376820,0.95341723,96173.0,96172.0,4.368e-05]
[1739989377010,0.95341723,96173.0,96172.0,0.00089488]
[1739989380541,0.99079178,96173.0,96172.0,0.00089488]
[1739989381116,0.155986,96162.0,96161.0,0.000425]
[1739989381374,0.155986,96162.0,96161.0,0.00055608]
[1739989381772,2.33678214,96162.0,96161.0,0.00055608]
[1739989383358,2.33878214,96162.0,96161.0,0.00055608]
[1739989383785,2.320484,96162.0,96161.0,0.00055608]
[1739989384639,2.322484,96162.0,96161.0,0.00055608]
[1739989386835,2.48878241,96162.0,96161.0,0.00055608]
[1739989387042,2.49656535,96162.0,96161.0,0.00055608]
[1739989387206,0.33206735,96162.0,96161.0,0.00055608]
[1739989387407,4.24204435,96162.0,96161.0,0.00055608]
[1739989387638,0.33206735,96162.0,96161.0,0.00055608]
[1739989387901,4.37553126,96162.0,96161.0,0.00055608]
[1739989388118,3.80953826,96162.0,96161.0,0.00055608]
[1739989388656,0.15,96161.0,96150.0,0.0008504]
[1739989388865,0.306004,96151.0,96150.0,0.0008504]
[1739989389497,0.32230418,96151.0,96150.0,0.0008504]
[1739989389932,0.15,96150.0,96141.0,0.05231189]
[1739989390126,0.306027,96137.0,96119.0,0.08325312]
[1739989390964,0.32232945,96137.0,96119.0,0.08325312]
[1739989392783,0.32232945,96137.0,96136.0,0.0014252]
[1739989392968,0.38284344,96137.0,96136.0,0.0014252]
[1739989393188,2.59230944,96137.0,96136.0,0.0014252]
[1739989393404,3.49088909,96137.0,96136.0,0.0014252]
[1739989393601,3.37503209,96137.0,96136.0,0.0004252]
[1739989393799,3.05290864,96137.0,96136.0,0.0004252]
[1739989394034,3.06090864,96137.0,96136.0,0.0004252]
[1739989394220,3.05790864,96137.0,96136.0,0.0004252]
[1739989394469,2.92657699,96137.0,96136.0,0.0004252]
[1739989394683,2.73869699,96137.0,96136.0,0.0004252]
[1739989394869,2.74668073,96137.0,96136.0,0.0004252]
[1739989395222,2.74168073,96137.0,96136.0,0.0004252]
[1739989395445,2.85018438,96137.0,96136.0,0.0004252]
[1739989395656,2.85718438,96137.0,96136.0,0.0004252]
[1739989396037,2.88318438,96137.0,96136.0,0.0004252]
[1739989396242,2.88318438,96137.0,96136.0,2e-07]
[1739989396423,0.41352473,96137.0,96136.0,2e-07]
[1739989396830,0.39352473,96137.0,96136.0,2e-07]
[1739989397089,0.42806558,96137.0,96136.0,2e-07]
[1739989398069,0.44437006,96137.0,96136.0,2e-07]
[1739989398705,0.40982921,96137.0,96136.0,2e-07]
[1739989399109,0.25982921,96137.0,96136.0,2e-07]
[1739989399938,0.40982921,96137.0,96136.0,2e-07]
[1739989400159,0.30603,96135.0,96134.0,6e-07]
[1739989400411,0.36000045,96135.0,96134.0,0.00013117]
[1739989401189,5.02241745,96135.0,96134.0,0.00013117]
[1739989401396,5.02241745,96135.0,96134.0,1.7e-07]
[1739989401673,0.4625041,96135.0,96134.0,1.7e-07]
[1739989402114,0.34057385,96133.0,96132.0,7.7e-07]
[1739989402338,0.38005754,96133.0,96132.0,7.7e-07]
[1739989402547,0.48256119,96133.0,96132.0,7.7e-07]
[1739989402753,0.89016119,96133.0,96132.0,7.7e-07]
[1739989402954,0.02,96125.0,96103.0,0.0765]
[1739989403157,0.30608,96104.0,96103.0,0.0765]
[1739989403374,0.306093,96096.0,96095.0,0.0491]
[1739989403821,0.306102,96091.0,96087.0,0.0809]
[1739989403962,1.394958,96091.0,96087.0,0.0809]
[1739989404170,1.141571,96091.0,96087.0,0.0809]
[1739989404386,1.14170174,96091.0,96087.0,0.0809]
[1739989404622,0.92375974,96091.0,96087.0,0.0809]
[1739989404790,0.95001609,96091.0,96087.0,0.0809]
[1739989404989,0.92375974,96091.0,96084.0,0.0478]
[1739989405213,0.95001609,96091.0,96084.0,0.0478]
[1739989405537,0.92375974,96091.0,96084.0,0.0478]
[1739989405772,0.95420858,96091.0,96084.0,0.0478]
[1739989406336,1.02227609,96091.0,96084.0,0.0478]
[1739989406530,0.9685709,96091.0,96084.0,0.0478]
[1739989406753,0.9194289,96091.0,96084.0,0.0478]
[1739989406982,0.6434649,96091.0,96084.0,0.0478]
[1739989407325,0.6086679,96091.0,96084.0,0.0478]
[1739989407533,0.6375932,96091.0,96084.0,0.0478]
[1739989407758,0.30598999,96091.0,96090.0,0.5585]
[1739989408033,0.00413074,96091.0,96090.0,0.71060365]
[1739989408263,0.00513074,96091.0,96090.0,0.79385677]
[1739989408478,0.00513074,96091.0,96090.0,0.94995977]
[1739989408692,0.00113074,96091.0,96090.0,0.94995977]
[1739989408906,0.00113074,96091.0,96090.0,0.79385677]
[1739989409095,0.00413074,96091.0,96090.0,0.79385677]
[1739989409344,0.00513074,96091.0,96090.0,0.79385677]
[1739989409584,0.00113074,96091.0,96090.0,0.79385677]
[1739989412573,0.00113074,96091.0,96090.0,0.94995977]
[1739989413715,0.00113074,96091.0,96090.0,1.26243977]
[1739989414334,0.00113074,96091.0,96090.0,1.26286557]
[1739989415094,0.00013074,96091.0,96090.0,1.26286557]
[1739989415483,0.00113074,96091.0,96090.0,1.26386557]
[1739989415700,0.00113074,96091.0,96090.0,1.26486557]
[1739989415908,0.00013074,96091.0,96090.0,1.26286557]
[1739989416317,0.00213074,96091.0,96090.0,1.26486557]
[1739989416601,0.00113074,96091.0,96090.0,1.26386557]
[1739989416733,0.00013074,96091.0,96090.0,1.26286557]
[1739989417157,0.00113074,96091.0,96090.0,1.26686557]
[1739989417838,0.15,96135.0,96109.0,0.0801]
[1739989418031,0.156055,96120.0,96109.0,0.0801]
[1739989418245,0.02876934,96123.0,96119.0,0.0768]
[1739989418454,0.208038,96136.0,96119.0,0.0768]
[1739989418651,0.15,96132.0,96119.0,0.0768]
[1739989419112,0.15,96132.0,96119.0,0.232855]
[1739989419360,0.15,96132.0,96120.0,0.156054]
[1739989419583,0.17845134,96132.0,96120.0,0.156054]
[1739989419809,0.02845134,96132.0,96119.0,0.0761]
[1739989420017,0.03245134,96132.0,96123.0,0.0761]
[1739989420159,0.004,96132.0,96124.0,0.10250365]
[1739989420339,0.00098268,96137.0,96124.0,0.10250365]
[1739989420543,0.208045,96133.0,96124.0,0.10250365]
[1739989420750,0.156038,96131.0,96124.0,0.10250365]
[1739989420955,0.158035,96132.0,96124.0,0.10250365]
[1739989421358,0.03101441,96132.0,96124.0,0.10250365]
[1739989421780,0.208051,96130.0,96124.0,0.10250365]
[1739989422122,0.02901441,96132.0,96124.0,0.10250365]
[1739989422307,0.208051,96130.0,96124.0,0.10250365]
[1739989422509,0.208042,96134.0,96124.0,0.10250365]
[1739989422719,0.156038,96130.0,96124.0,0.10250365]
[1739989423270,0.157038,96130.0,96124.0,0.10250365]
[1739989423925,0.001,96130.0,96124.0,0.10250365]
[1739989425883,0.001,96130.0,96125.0,0.0796]
[1739989426123,0.001,96130.0,96126.0,0.0796]
[1739989426786,0.0008518,96132.0,96126.0,0.0796]
[1739989427237,0.001,96130.0,96126.0,0.0796]
[1739989427450,0.16841048,96133.0,96126.0,0.0796]
[1739989427680,0.156043,96127.0,96126.0,0.0796]
[1739989427924,0.156056,96119.0,96118.0,0.075]
[1739989428785,0.01630337,96129.0,96118.0,0.075]
[1739989429194,0.156041,96128.0,96118.0,0.075]
[1739989429406,0.01630337,96129.0,96118.0,0.075]
[1739989429407,0.001,96119.0,96118.0,0.075]
[1739989429923,0.001,96119.0,96118.0,0.077]
[1739989430731,0.01630337,96129.0,96118.0,0.077]
[1739989431162,0.156053,96122.0,96118.0,0.077]
[1739989431358,0.15605,96123.0,96118.0,0.077]
[1739989431610,0.001,96119.0,96118.0,0.077]
[1739989431815,0.001,96119.0,96118.0,0.075]
[1739989431946,0.156056,96119.0,96118.0,0.075]
[1739989432276,0.156056,96120.0,96118.0,0.075]
[1739989432785,0.157056,96119.0,96118.0,0.075]
[1739989432997,0.157056,96119.0,96118.0,0.078]
[1739989433415,0.157056,96119.0,96118.0,0.075]
[1739989433564,0.157056,96119.0,96118.0,0.078]
[1739989433960,0.156056,96119.0,96118.0,0.078]
[1739989435058,0.157056,96119.0,96118.0,0.075]
[1739989435256,0.157056,96119.0,96118.0,0.078]
[1739989435824,0.001,96119.0,96118.0,0.234058]
[1739989436029,0.001,96119.0,96118.0,0.33656165]
[1739989436233,0.001,96119.0,96118.0,0.38426165]
[1739989436843,0.001,96119.0,96118.0,0.38468755]
[1739989441292,0.001,96119.0,96118.0,0.38168755]
[1739989441645,0.002,96119.0,96118.0,0.38468755]
[1739989441847,0.156024,96139.0,96136.0,0.0753]
[1739989442050,0.15,96149.0,96136.0,0.0753]
[1739989442262,0.156027,96138.0,96136.0,0.0753]
[1739989442467,0.156027,96137.0,96136.0,0.0753]
[1739989442789,0.18086882,96137.0,96136.0,0.0753]
[1739989443436,0.02484182,96137.0,96136.0,0.0753]
[1739989443670,0.156023,96140.0,96136.0,0.0753]
[1739989443846,0.156026,96138.0,96136.0,0.0753]
[1739989444046,0.156027,96137.0,96136.0,0.0773]
[1739989444252,0.156025,96139.0,96136.0,0.0753]
[1739989444452,0.208012,96149.0,96136.0,0.0753]
[1739989444650,0.156025,96138.0,96136.0,0.0783]
[1739989445401,0.156025,96138.0,96136.0,0.0763]
[1739989445538,0.208029,96141.0,96136.0,0.0763]
[1739989445740,0.156025,96139.0,96136.0,0.0763]
[1739989445937,0.156025,96139.0,96136.0,0.0753]
[1739989446162,0.02648732,96149.0,96138.0,0.0768]
[1739989446548,0.02648732,96149.0,96139.0,0.10250365]
[1739989447161,0.18149532,96149.0,96139.0,0.10250365]
[1739989447352,0.156009,96148.0,96139.0,0.10250365]
[1739989447524,0.02548732,96149.0,96139.0,0.10250365]
[1739989447756,0.156006,96151.0,96142.0,0.156019]
[1739989448140,0.156007,96149.0,96140.0,0.156021]
[1739989448301,0.156007,96149.0,96141.0,0.10250365]
[1739989448542,0.02488588,96151.0,96141.0,0.10250365]
[1739989448786,0.208003,96153.0,96141.0,0.10250365]
[1739989448964,0.15601,96148.0,96141.0,0.10250365]
[1739989449308,0.15601,96148.0,96142.0,0.002]
[1739989449531,0.02540682,96151.0,96142.0,0.002]
[1739989449745,0.00775411,96181.0,96162.0,0.01454085]
[1739989449961,0.0004256,96187.0,96186.0,0.155947]
[1739989450178,0.0004256,96187.0,96186.0,0.25553186]
[1739989450391,0.0004256,96187.0,96186.0,0.26321186]
[1739989451230,0.0004255,96215.0,96199.0,0.155926]
[1739989451462,0.0004255,96215.0,96214.0,0.155902]
[1739989451675,0.0004255,96215.0,96214.0,0.5086665]
[1739989451896,0.0004255,96215.0,96214.0,0.5474465]
[1739989452106,0.0004255,96215.0,96214.0,0.4051665]
[1739989452521,0.0004254,96229.0,96225.0,0.155884]
[1739989452725,0.00055647,96226.0,96225.0,1.06805056]
[1739989452941,0.00055647,96226.0,96225.0,1.14605056]
[1739989453147,0.0004257,96259.0,96233.0,0.32041185]
[1739989453346,0.0004257,96259.0,96233.0,0.4229155]
[1739989453814,0.0004257,96259.0,96233.0,0.10250365]
[1739989454461,0.0014253,96234.0,96233.0,0.10950365]
[1739989454694,0.0004253,96234.0,96233.0,0.10250365]
[1739989455157,0.0024253,96234.0,96233.0,0.11650365]
[1739989455382,0.0014253,96234.0,96233.0,0.10950365]
[1739989456152,0.0024253,96234.0,96233.0,0.11650365]
[1739989456557,0.0014253,96234.0,96233.0,0.10950365]
[1739989456758,0.0004253,96234.0,96233.0,0.10250365]
[1739989457108,0.0014253,96234.0,96233.0,0.10950365]
[1739989457309,0.0014253,96234.0,96233.0,0.10250365]
[1739989457742,0.0014253,96234.0,96233.0,0.1240445]
[1739989457743,0.0024253,96234.0,96233.0,0.1240445]
[1739989457943,0.0034253,96234.0,96233.0,0.1310445]
[1739989458298,0.0024253,96234.0,96233.0,0.2799155]
[1739989458503,0.0004253,96234.0,96233.0,0.2729155]
[1739989458728,0.0024253,96234.0,96233.0,0.2869155]
[1739989459345,0.0024253,96234.0,96233.0,1.1427955]
[1739989460547,0.0014253,96234.0,96233.0,1.1357955]
[1739989461380,0.0024253,96234.0,96233.0,1.1427955]
[1739989461693,0.0024253,96234.0,96233.0,1.1357955]
[1739989461902,0.0024253,96234.0,96233.0,1.1427955]
[1739989462458,0.0024253,96234.0,96233.0,1.1357955]
[1739989462901,0.0024253,96234.0,96233.0,1.1427955]
[1739989463089,0.0014253,96234.0,96233.0,1.1427955]
[1739989463299,0.0004253,96234.0,96233.0,1.1357955]
[1739989463566,0.0004253,96234.0,96233.0,1.1427955]
[1739989464584,0.0004253,96234.0,96233.0,1.1357955]
[1739989464800,0.0004253,96234.0,96233.0,1.1427955]
[1739989465254,0.0004253,96234.0,96233.0,1.1357955]
[1739989465724,0.0004253,96234.0,96233.0,1.1427955]
[1739989466194,0.0004253,96234.0,96233.0,1.1357955]
[1739989466621,0.0004253,96234.0,96233.0,1.1427955]
[1739989466839,0.0004253,96234.0,96233.0,1.1357955]
[1739989467197,0.0004253,96234.0,96233.0,1.1427955]
[1739989467401,0.0004253,96234.0,96233.0,1.1357955]
[1739989467601,0.0004253,96234.0,96233.0,1.1287955]
[1739989467859,0.0004253,96234.0,96233.0,1.1357955]
[1739989468083,0.0004253,96234.0,96233.0,1.1427955]
[1739989468536,0.0004253,96234.0,96233.0,1.1649487]
[1739989468752,0.0004253,96234.0,96233.0,1.1719487]
[1739989469194,0.155809,96272.0,96259.0,0.155828]
[1739989469467,0.15593995,96272.0,96260.0,0.25832965]
[1739989469690,0.15581,96271.0,96260.0,0.10250365]
[1739989469901,0.00013095,96272.0,96260.0,0.10250365]
[1739989470332,0.15593895,96272.0,96260.0,0.10250365]
[1739989471113,0.15593895,96272.0,96260.0,0.10850365]
[1739989471573,0.15581,96271.0,96260.0,0.10850365]
[1739989471779,0.15581,96271.0,96260.0,0.11250365]
[1739989471994,0.15593895,96272.0,96260.0,0.26833065]
[1739989472191,0.15593895,96272.0,96260.0,0.11250365]
[1739989472349,0.15593895,96272.0,96260.0,0.10850365]
[1739989472551,0.00013095,96272.0,96260.0,0.10250365]
[1739989472754,0.00013095,96272.0,96260.0,0.10450365]
[1739989472975,0.00013095,96272.0,96261.0,0.155826]
[1739989473176,0.00013095,96272.0,96250.0,0.13117666]
[1739989473177,0.00013095,96272.0,96262.0,0.10250365]
[1739989473384,0.00055635,96272.0,96262.0,0.10250365]
[1739989474617,0.01913511,96271.0,96262.0,0.10250365]
[1739989475235,0.01913511,96271.0,96262.0,0.10650365]
[1739989475652,0.01913511,96271.0,96262.0,0.10250365]
[1739989475831,0.01913511,96271.0,96262.0,0.10850365]
[1739989476041,0.01913511,96271.0,96262.0,0.10750365]
[1739989476251,0.17494511,96271.0,96262.0,0.11350365]
[1739989476457,0.01913511,96270.0,96262.0,0.11350365]
[1739989477524,0.01913511,96269.0,96262.0,0.10250365]
[1739989477857,0.01913511,96269.0,96262.0,0.10750365]
[1739989478393,0.01913511,96269.0,96262.0,0.10250365]
[1739989478840,0.01913511,96269.0,96262.0,0.11350365]
[1739989479059,0.01913511,96268.0,96264.0,0.155819]
[1739989479254,0.01913511,96268.0,96262.0,0.11350365]
[1739989479457,0.01913511,96268.0,96262.0,0.10750365]
[1739989480087,0.01913511,96268.0,96262.0,0.10250365]
[1739989480321,0.01913511,96268.0,96262.0,0.10950365]
[1739989480464,0.01913511,96267.0,96264.0,0.006]
[1739989480893,0.01913511,96267.0,96262.0,0.10950365]
[1739989481279,0.01913511,96267.0,96262.0,0.11550365]
[1739989481705,0.01913511,96267.0,96262.0,0.10950365]
[1739989481912,0.01913511,96267.0,96262.0,0.11550365]
[1739989482123,0.01913511,96266.0,96262.0,0.11550365]
[1739989482522,0.17495411,96266.0,96262.0,0.10850365]
[1739989482755,0.01913511,96266.0,96262.0,0.10850365]
[1739989483079,0.01913511,96266.0,96264.0,0.007]
[1739989483329,0.01913511,96266.0,96262.0,0.10250365]
[1739989483540,0.01913511,96266.0,96262.0,0.10850365]
[1739989483750,0.01913511,96266.0,96262.0,0.11550365]
[1739989483958,0.01913511,96265.0,96262.0,0.10850365]
[1739989484393,0.01913511,96265.0,96264.0,0.006]
[1739989485684,0.01913511,96265.0,96262.0,0.10250365]
[1739989485883,0.01913511,96265.0,96262.0,0.10850365]
[1739989486206,0.01913511,96265.0,96262.0,0.10250365]
[1739989486561,0.01913511,96264.0,96262.0,0.10950365]
[1739989486767,0.01913511,96264.0,96262.0,0.10250365]
[1739989487373,0.01913511,96264.0,96263.0,0.03245537]
[1739989487753,0.01913511,96264.0,96263.0,0.13495902]
[1739989489763,0.01913511,96264.0,96263.0,0.29778202]
[1739989490454,0.00055635,96272.0,96263.0,0.29778202]
[1739989490455,0.00055635,96272.0,96270.0,0.155811]
[1739989490656,0.00055635,96272.0,96271.0,0.03245537]
[1739989491821,0.00055635,96272.0,96271.0,0.18826537]
[1739989492027,0.00055635,96272.0,96271.0,0.03245537]
[1739989492245,0.00055635,96272.0,96271.0,0.03945537]
[1739989492766,0.00055635,96272.0,96271.0,0.19526537]
[1739989492981,0.00055635,96272.0,96271.0,0.29776902]
[1739989493155,0.00055635,96272.0,96271.0,0.42546902]
[1739989494257,0.00055635,96272.0,96271.0,0.73794902]
[1739989494825,0.00055635,96272.0,96271.0,0.74394902]
[1739989495032,0.00055635,96272.0,96271.0,0.73694902]
[1739989495228,0.00055635,96272.0,96271.0,0.73094902]
[1739989495460,0.00055635,96272.0,96271.0,0.74494902]
[1739989495649,0.00055635,96272.0,96271.0,0.73794902]
[1739989496110,0.00055635,96272.0,96271.0,0.74494902]
[1739989496684,0.00055635,96272.0,96271.0,0.73794902]
[1739989496887,0.00055635,96272.0,96271.0,0.75948987]
[1739989497296,0.00055635,96272.0,96271.0,0.75248987]
[1739989497681,0.00055635,96272.0,96271.0,0.75948987]
[1739989498065,0.00055635,96272.0,96271.0,0.74548987]
[1739989498487,0.00055635,96272.0,96271.0,0.75948987]
[1739989498694,0.00055635,96272.0,96271.0,0.75248987]
[1739989499526,0.00055635,96272.0,96271.0,0.75948987]
[1739989501658,0.0705679,96300.0,96272.0,0.01454085]
[1739989501878,0.00086182,96304.0,96274.0,0.01454085]
[1739989502091,0.155766,96299.0,96276.0,0.01454085]
[1739989502358,0.155766,96299.0,96292.0,0.155776]
[1739989502562,0.00086182,96304.0,96293.0,0.10250365]
[1739989502772,0.00086182,96304.0,96303.0,0.155758]
[1739989502980,0.00086182,96304.0,96303.0,0.25826165]
[1739989503791,0.00086182,96304.0,96303.0,0.10250365]
[1739989504082,0.00086182,96304.0,96303.0,0.25826165]
[1739989504452,0.00086182,96304.0,96303.0,0.26226165]
[1739989505837,0.00086182,96304.0,96303.0,0.25826165]
[1739989506070,0.00086182,96304.0,96303.0,0.26526165]
[1739989506271,0.00086182,96304.0,96303.0,0.10950365]
[1739989506544,0.00086182,96304.0,96303.0,0.27026165]
[1739989506895,0.00086182,96304.0,96303.0,0.26526165]
[1739989507129,0.00086182,96304.0,96303.0,0.27126165]
[1739989508039,0.00086182,96304.0,96303.0,0.11550365]
[1739989508534,0.00086182,96304.0,96303.0,0.27126165]
[1739989509340,0.00086182,96304.0,96303.0,0.26526165]
[1739989509596,0.00086182,96304.0,96303.0,0.27226165]
[1739989509819,0.00086182,96304.0,96303.0,0.26526165]
[1739989510047,0.00086182,96304.0,96303.0,0.27226165]
[1739989510276,0.00086182,96304.0,96303.0,0.26526165]
[1739989510478,0.00086182,96304.0,96303.0,0.27126165]
[1739989511148,0.00086182,96304.0,96303.0,0.26426165]
[1739989511609,0.00086182,96304.0,96303.0,0.27126165]
[1739989512216,0.00086182,96304.0,96303.0,0.26526165]
[1739989512392,0.00086182,96304.0,96303.0,0.26326165]
[1739989512790,0.00086182,96304.0,96303.0,0.27026165]
[1739989514248,0.00086182,96304.0,96303.0,0.26326165]
[1739989514722,0.00086182,96304.0,96303.0,0.26526165]
[1739989515025,0.00086182,96304.0,96303.0,0.27226165]
[1739989518648,0.00086182,96304.0,96303.0,0.70949983]
[1739989518825,0.00086182,96304.0,96303.0,0.6638825]
[1739989519033,0.00086182,96304.0,96303.0,0.6708825]
[1739989519241,0.00086182,96304.0,96303.0,0.67098165]
[1739989519581,0.207588,96345.0,96304.0,0.15]
[1739989519759,0.155724,96324.0,96316.0,0.155736]
[1739989519974,0.155724,96324.0,96317.0,0.10250365]
[1739989520172,0.155722,96326.0,96317.0,0.10250365]
[1739989520373,0.03185198,96329.0,96317.0,0.10250365]
[1739989520578,0.00013087,96331.0,96317.0,0.10250365]
[1739989521004,0.256394,96342.0,96317.0,0.10250365]
[1739989521224,0.256394,96342.0,96324.0,0.155723]
[1739989521428,0.155709,96334.0,96325.0,0.25822465]
[1739989521564,0.15571,96333.0,96325.0,0.25822465]
[1739989521763,0.207595,96341.0,96325.0,0.25822565]
[1739989522252,0.207601,96339.0,96325.0,0.25822565]
[1739989522458,0.155713,96331.0,96325.0,0.10250365]
[1739989522625,0.155707,96335.0,96326.0,0.15572]
[1739989523046,0.155705,96336.0,96327.0,0.155718]
[1739989523295,0.0488,96342.0,96325.0,0.10650365]
[1739989523422,0.207598,96340.0,96325.0,0.10650365]
[1739989523618,0.155707,96335.0,96325.0,0.26222465]
[1739989523848,0.207598,96340.0,96327.0,0.155719]
[1739989524069,0.155708,96334.0,96326.0,0.002]
[1739989524424,0.15571,96333.0,96326.0,0.002]
[1739989524649,0.207609,96335.0,96326.0,0.002]
[1739989524869,0.155709,96334.0,96326.0,0.002]
[1739989525070,0.155712,96332.0,96325.0,0.10250365]